Workbook

Sheet Лист1
A1: Школа | C1: МАОУ СОШ №175 | F1: Утвердил: | G1: должность
A2: Типовое примерное меню приготавливаемых блюд | G2: фамилия
A3: Возрастная категория | E3: 7-11 лет | G3: дата | J3: 2025
H4: день | I4: месяц | J4: год
A5: Неделя | B5: День недели | C5: Прием пищи | D5: Раздел меню | E5: Блюда | F5: Вес блюда, г | G5: Белки | H5: Жиры | I5: Углеводы | J5: Калорийность | K5: № рецептуры | L5: Цена
A6: 1 | B6: 1 | C6: Завтрак | D6: бутерброды | E6: Бутерброд с сыром 15/25 | F6: 40 | G6: 1.65 | H6: 14.27 | I6: 9.9 | J6: 235.2 | K6: 11359 | L6: 31.29
D7: гор.блюдо | E7: Каша пшенная молочная с маслом | F7: 210 | G7: =G6*230/250 -> 1.518 | H7: =H6*230/250 -> 13.1284 | I7: 9.108 | J7: 216.384 | K7: 11344 | L7: 43.45
D8: гор.напиток | E8: Напиток витомизировый "Витошка" | F8: 200 | G8: 7.5 | H8: 6.15 | I8: 32.55 | J8: 72 | K8: 11337 | L8: 26.81
D9: хлеб черн. | E9: Хлеб ржаной | F9: 25 | G9: 1.32 | H9: 0.24 | I9: 8.34 | J9: 38.7 | K9: 11336 | L9: 2.88
D10: батон | E10: Батон витаминизированый | F10: 25 | G10: 7.5 | H10: 6.15 | I10: 32.55 | J10: 72 | K10: 11418 | L10: 4.21
D11: итого | F11: =SUM(F6:F10) -> 500 | G11: =SUM(G6:G9) -> 11.988 | H11: =SUM(H6:H10) -> 39.9384 | I11: =SUM(I6:I9) -> 59.898 | J11: =SUM(J6:J10) -> 634.284 | L11: =SUM(L6:L10) -> 108.64
A12: =A6 -> 1 | B12: =B6 -> 1 | C12: Обед | D12: 1 блюдо | E12: Суп гороховый куриный | F12: 200 | G12: 7.13 | H12: 6.2 | I12: 15.6 | J12: 148 | K12: 11385 | L12: 34.34
D13: гарнир | E13: Макаронные изделия отварные с маслом сливочным | F13: 150 | G13: 5.65 | H13: 4.07 | I13: 35.42 | J13: 200.44 | K13: 11392 | L13: 18.6
D14: 2 блюдо | E14: Печень по-строгановски | F14: 90 | G14: 8.2 | H14: 8.4 | I14: 36.2 | J14: 288.6 | K14: 11715 | L14: 81.17
D15: гор.напиток | E15: Чай с сахаром | F15: 200 | G15: 1.65 | H15: 0.15 | I15: 11.7 | J15: 56 | K15: 11342 | L15: 3.56
D16: хлеб бел. | E16: Хлеб вит. пшеничный | F16: 25 | G16: 1.65 | H16: 0.15 | I16: 11.7 | J16: 56 | K16: 11335 | L16: 3.18
D17: хлеб черн. | E17: Хлеб ржаной | F17: 25 | G17: 1.32 | H17: 0.24 | I17: 8.34 | J17: 38.7 | K17: 11336 | L17: 2.88
D18: свежие овощи | E18: Закуска из помидор с подсолнечным маслом | F18: 60 | G18: 0.48 | H18: 6.11 | I18: 2.1 | J18: 63.66 | K18: 011368 | L18: 19.22
D19: итого | F19: =SUM(F12:F18) -> 750 | G19: =SUM(G12:G18) -> 26.08 | H19: =SUM(H12:H17) -> 19.21 | I19: =SUM(I12:I17) -> 118.96 | J19: =SUM(J12:J17) -> 787.74 | L19: =SUM(L12:L18) -> 162.95
A20: =A6 -> 1 | B20: =B6 -> 1 | C20: Итого за день: | F20: =SUM(F19,F11) -> 1250 | G20: =SUM(G19,G11) -> 38.068 | H20: =SUM(H19,H11) -> 59.1484 | I20: =SUM(I11,I19) -> 178.858 | J20: =SUM(J11,J19) -> 1422.024
A21: 1 | B21: 2 | C21: Завтрак | D21: блюдо из творога | E21: Пудинг из творога с повидлом 130/20 | F21: 150 | G21: 10.6 | H21: 9.6 | I21: 8.1 | J21: 224.5 | K21: 11779 | L21: 76.23
D22: гор.напиток | E22: Чай с сахаром | F22: 200 | G22: 1.65 | H22: 0.15 | I22: 11.7 | J22: 56 | K22: 11342 | L22: 3.56
D23: батон | E23: Батон пшеничный | F23: 25 | G23: 7.5 | H23: 6.15 | I23: 32.55 | J23: 72 | K23: 11418 | L23: 4.21
D24: хлеб черн. | E24: Хлеб ржаной | F24: 25 | G24: 1.32 | H24: 0.24 | I24: 8.34 | J24: 38.7 | K24: 11336 | L24: 2.88
D25: фрукты | E25: Фрукт | F25: 100 | G25: 0.52 | H25: 0.52 | I25: 15.08 | J25: 63.28 | K25: 11337 | L25: 21.76
D26: итого | F26: =SUM(F21:F25) -> 500 | G26: =SUM(G21:G25) -> 21.59 | H26: =SUM(H21:H25) -> 16.66 | I26: =SUM(I21:I25) -> 75.77 | J26: =SUM(J21:J25) -> 454.48 | L26: =SUM(L21:L25) -> 108.64
A27: =A21 -> 1 | B27: =B21 -> 2 | C27: Обед | D27: 1 блюдо | E27: Борщ Морячок со сметаной | F27: 200 | G27: 0.84 | H27: 3 | I27: 1.56 | J27: 139.52 | K27: 11439 | L27: 42
D28: гор.блюдо | E28: Плов с курицей и куркумой | F28: 240 | G28: 8.5 | H28: 6.8 | I28: 41.8 | J28: 334 | K28: 11530 | L28: 89.02
D29: гор.напиток | E29: Чай лимонный с сахаром | F29: 200 | G29: 0.24 | H29: 0.05 | I29: 14.7 | J29: 55.61 | K29: 11715 | L29: 6.69
D30: хлеб бел. | E30: Хлеб вит. пшеничный | F30: 25 | G30: 1.98 | H30: 0.18 | I30: 14.04 | J30: 67.2 | K30: 11335 | L30: 3.18
D31: хлеб черн. | E31: Хлеб ржаной | F31: 25 | G31: 1.39 | H31: 0.25 | I31: 8.84 | J31: 41 | K31: 11336 | L31: 2.88
D32: хлеб черн. | E32: Хлеб вит. ржаной витаминизированный | F32: 40 | G32: 2.64 | H32: 0.48 | I32: 16.68 | J32: 77.352
D33: свежие овощи | E33: Закуска из огурцов свежих с подсолнечным маслом | F33: 60 | G33: 0.35 | H33: 6.06 | I33: 1.96 | J33: 62.04 | K33: 11369 | L33: 19.18
D34: итого | F34: 750 | G34: =SUM(G27:G33) -> 15.94 | H34: =SUM(H27:H31) -> 10.28 | I34: =SUM(I27:I31) -> 80.94 | J34: =SUM(J27:J31) -> 637.33 | L34: =SUM(L27:L33) -> 162.95
A35: =A21 -> 1 | B35: =B21 -> 2 | C35: Итого за день: | F35: =SUM(F26,F34) -> 1250 | G35: =SUM(G34,G26) -> 37.53 | H35: =SUM(H34,H26) -> 26.94 | I35: =SUM(I26,I34) -> 156.71 | J35: =SUM(J34,J26) -> 1091.81
A36: 1 | B36: 3 | C36: Завтрак | D36: гарнир | E36: Макаронные изделия отварные | F36: 160 | G36: 5.65 | H36: 4.07 | I36: 35.42 | J36: 200.44 | K36: 11413 | L36: 19.83
D37: 2 блюдо | E37: Курица в сырном соусе | F37: 90 | G37: 20.22 | H37: 9.17 | I37: 9.97 | J37: 207.39 | K37: 11547 | L37: 75.03
D38: гор.напиток | E38: Чай лимонный с сахаром | F38: 200 | G38: 0.24 | H38: 0.05 | I38: 14.7 | J38: 55.61 | K38: 11343 | L38: 6.69
D39: батон | E39: Батон витаминизированый | F39: 25 | G39: 7.5 | H39: 6.15 | I39: 32.55 | J39: 72 | K39: 11418 | L39: 4.21
D40: хлеб черн. | E40: Хлеб ржаной | F40: 25 | G40: 1.32 | H40: 0.24 | I40: 8.34 | J40: 38.7 | K40: 11336 | L40: 2.88
D41: итого | F41: =SUM(F36:F40) -> 500 | G41: =SUM(G36:G40) -> 34.93 | H41: =SUM(H36:H40) -> 19.68 | I41: =SUM(I36:I40) -> 100.98 | J41: =SUM(J36:J40) -> 574.14 | L41: =SUM(L36:L40) -> 108.64
A42: =A36 -> 1 | B42: =B36 -> 3 | C42: Обед | D42: 1 блюдо | E42: Суп куриный с картофелем и макаронными изделиями | F42: 200 | G42: 5.27 | H42: 8.51 | I42: 46.4 | J42: 153.15 | K42: 11386 | L42: 25.32
D43: гарнир | E43: Каша гречневая рассыпчатая | F43: 150 | G43: 2.7 | H43: 4 | I43: 21.53 | J43: 124.83 | K43: 11397 | L43: 13.03
D44: 2 блюдо | E44: Гуляш из свинины | F44: 90 | G44: 17.4 | H44: 10.36 | I44: 7.17 | J44: 293.3 | K44: 11397 | L44: 80.84
D45: гор.напиток | E45: Чай с сахаром | F45: 200 | G45: 1.65 | H45: 0.15 | I45: 11.7 | J45: 56 | K45: 11342 | L45: 3.56
D46: хлеб бел. | E46: Хлеб вит. пшеничный | F46: 25 | G46: 1.32 | H46: 0.24 | I46: 8.34 | J46: 38.676 | K46: 11335 | L46: 3.18
D47: хлеб черн. | E47: Хлеб ржаной | F47: 25 | G47: 1.05 | H47: 0.19 | I47: 6.67 | J47: 30.9 | K47: 11336 | L47: 2.88
D48: свежие овощи | E48: Закуска из квашеной капусты с маслом | F48: 60 | G48: 0.49 | H48: 6.08 | I48: 2.31 | J48: 64.2 | K48: 11367 | L48: 34.14
D49: итого | F49: =SUM(F42:F48) -> 750 | G49: =SUM(G42:G48) -> 29.88 | H49: =SUM(H42:H47) -> 23.45 | I49: =SUM(I42:I47) -> 101.81 | J49: =SUM(J42:J47) -> 696.856 | L49: =SUM(L42:L48) -> 162.95
A50: =A36 -> 1 | B50: =B36 -> 3 | C50: Итого за день: | F50: 1290 | G50: =SUM(G49,G41) -> 64.81 | H50: =SUM(H41,H49) -> 43.13 | I50: =SUM(I41,I49) -> 202.79 | J50: =SUM(J41,J49) -> 1270.996
A51: 1 | B51: 4 | C51: Завтрак | D51: бутерброды | E51: Бутерброд с сыром 15/25 | F51: 40 | G51: 1.65 | H51: 14.27 | I51: 9.9 | J51: 192.3 | K51: 11362 | L51: 31.29
D52: гор.блюдо | E52: Каша Ассорти с маслом | F52: 210 | G52: 6.77 | H52: 8.9 | I52: 49.65 | J52: 300.45 | K52: 11775 | L52: 44.96
D53: гор.напиток | E53: Напиток из цикория с молоком | F53: 200 | G53: 1.4 | H53: 1.1 | I53: 16.6 | J53: 79 | K53: 11339 | L53: 25.3
D54: батон | E54: Батон витаминизированый | F54: 25 | G54: 5.1 | H54: 1.9 | I54: 7.4 | J54: 70 | K54: 11418 | L54: 4.21
D55: хлеб черн. | E55: Хлеб ржаной | F55: 25 | G55: 1.32 | H55: 0.24 | I55: 8.34 | J55: 38.7 | K55: 11336 | L55: 2.88
D56: итого | F56: =SUM(F51:F55) -> 500 | G56: =SUM(G51:G55) -> 16.24 | H56: =SUM(H51:H55) -> 26.41 | I56: =SUM(I51:I55) -> 91.89 | J56: =SUM(J51:J55) -> 680.45 | L56: =SUM(L51:L55) -> 108.64
A57: =A51 -> 1 | B57: =B51 -> 4 | C57: Обед | D57: 1 блюдо | E57: Рассольник Ленинградский со сметаной | F57: 200 | G57: 4.44 | H57: 9.67 | I57: 14.36 | J57: 198.83 | K57: 11386 | L57: 42
D58: 2 блюдо | E58: Тефтелька мясная с рисом с томатным соусом | F58: 80/20 | G58: 16 | H58: 7.46 | I58: 11.15 | J58: 197.65 | K58: 11397 | L58: 71.85
D59: гарнир | E59: Картофельное пюре | F59: 150 | G59: 3.38 | H59: 2.45 | I59: 23.51 | J59: 123.14 | K59: 11941 | L59: 30.74
D60: напиток | E60: Напиток фруктовый | F60: 200 | G60: 0.27 | H60: 0.09 | I60: 22.75 | J60: 92.22 | K60: 11342 | L60: 12.3
D61: хлеб бел. | E61: Хлеб вит. пшеничный | F61: 25 | G61: 1.32 | H61: 0.24 | I61: 8.34 | J61: 38.676 | K61: 11335 | L61: 3.18
D62: хлеб черн. | E62: Хлеб ржаной | F62: 25 | G62: 1.05 | H62: 0.19 | I62: 6.67 | J62: 30.9 | K62: 11336 | L62: 2.88
D63: итого | F63: 700 | G63: =SUM(G57:G62) -> 26.46 | H63: =SUM(H57:H62) -> 20.1 | I63: =SUM(I57:I62) -> 86.78 | J63: =SUM(J57:J62) -> 681.416 | L63: =SUM(L57:L62) -> 162.95
A64: =A51 -> 1 | B64: =B51 -> 4 | C64: Итого за день: | F64: 1200 | G64: =SUM(G63,G56) -> 42.7 | H64: =SUM(H56,H63) -> 46.51 | I64: =SUM(I56,I63) -> 178.67 | J64: =SUM(J56,J63) -> 1361.866
A65: 1 | B65: 5 | C65: Завтрак | D65: бутерброды | E65: Бутерброд с маслом сливочным 10/25 | F65: 35 | G65: 1.65 | H65: 14.27 | I65: 9.9 | J65: 174.5968 | K65: 13358 | L65: 27.74
D66: блюдо из яиц | E66: Омлет натуральный | F66: 190 | G66: 5.65 | H66: 4.28 | I66: 0.32 | J66: 64.35 | K66: 11357 | L66: 57.01
D67: гор.напиток | E67: Чай с молоком | F67: 200 | G67: 5.1 | H67: 6.5 | I67: 24.7 | J67: 115.2 | K67: 11344 | L67: 13.92
D68: батон | E68: Батон витаминизированый | F68: 25 | G68: 7.5 | H68: 6.15 | I68: 32.55 | J68: 72 | K68: 11418 | L68: 4.21
D69: хлеб черн. | E69: Хлеб ржаной | F69: 50 | G69: 1.32 | H69: 0.24 | I69: 8.34 | J69: 38.7 | K69: 11336 | L69: 5.76
D70: итого | F70: 500 | G70: =SUM(G65:G69) -> 21.22 | H70: =SUM(H65:H69) -> 31.44 | I70: =SUM(I65:I69) -> 75.81 | J70: =SUM(J65:J69) -> 464.8468 | L70: =SUM(L65:L69) -> 108.64
A71: =A65 -> 1 | B71: =B65 -> 5 | C71: Обед | D71: 1 блюдо | E71: Суп-пюре с тыквой и гренками | F71: 200 | G71: 3.75 | H71: 11.39 | I71: 18.49 | J71: 150.38 | K71: 11513 | L71: 36.6
D72: 2 блюдо | E72: Рагу из курицы с овощами | F72: 240 | G72: 17.4 | H72: 6.82 | I72: 27.5 | J72: 220.5 | K72: 11392 | L72: 112.61
D73: напиток | E73: Чай Каркаде с сахаром | F73: 200 | G73: 3 | H73: 2.6 | I73: 13.3 | J73: 90 | K73: 11397 | L73: 4.5
D74: хлеб бел. | E74: Хлеб вит. пшеничный | F74: 50 | G74: 3.3 | H74: 0.3 | I74: 23.4 | J74: 112 | K74: 11335 | L74: 6.36
D75: хлеб черн. | E75: Хлеб ржаной | F75: 25 | G75: 2.64 | H75: 0.48 | I75: 16.68 | J75: 77.352 | K75: 11336 | L75: 2.88
D76: итого | F76: 715 | G76: =SUM(G71:G75) -> 30.09 | H76: =SUM(H71:H75) -> 21.59 | I76: =SUM(I71:I75) -> 99.37 | J76: =SUM(J71:J75) -> 650.232 | L76: =SUM(L71:L75) -> 162.95
A77: =A65 -> 1 | B77: =B65 -> 5 | C77: Итого за день: | F77: 1215 | G77: =SUM(G76,G70) -> 51.31 | H77: =SUM(H70,H76) -> 53.03 | I77: =SUM(I70,I76) -> 175.18 | J77: =SUM(J76,J70) -> 1115.0788
A78: 2 | B78: 1 | C78: Завтрак | D78: бутерброды | E78: Бутерброд с маслом сливочным 10/25 | F78: 35 | G78: 5.84 | H78: 14.94 | I78: 14.58 | J78: 224 | K78: 11863 | L78: 27.74
D79: гор.блюдо | E79: Каша рисовая молочная с маслом | F79: 220 | G79: 5.1 | H79: 6.5 | I79: 24.7 | J79: 181 | K79: 11467 | L79: 47
D80: гор.напиток | E80: Кисель "Витошка" с витаминами | F80: 200 | G80: 1.4 | H80: 1.1 | I80: 16.6 | J80: 79 | K80: 11337 | L80: 26.81
D81: хлеб черн. | E81: Хлеб ржаной | F81: 25 | G81: 1.32 | H81: 0.24 | I81: 8.34 | J81: 38.7 | K81: 11336 | L81: 2.88
D82: батон | E82: Батон витаминизированый | F82: 25 | G82: 7.5 | H82: 6.15 | I82: 32.55 | J82: 72 | K82: 11418 | L82: 4.21
D83: итого | F83: 505 | G83: =SUM(G78:G82) -> 21.16 | H83: =SUM(H78:H81) -> 22.78 | I83: =SUM(I78:I81) -> 64.22 | J83: =SUM(J78:J81) -> 522.7 | L83: =SUM(L78:L82) -> 108.64
A84: =A78 -> 2 | B84: =B78 -> 1 | C84: Обед | D84: 1 блюдо | E84: Суп гороховый куриный | F84: 200 | G84: 7.13 | H84: 6.2 | I84: 15.6 | J84: 148 | K84: 11385 | L84: 28.61
D85: 2 блюдо | E85: Азу из свинины | F85: 90 | G85: 17.4 | H85: 31.68 | I85: 27.5 | J85: 354.2 | K85: 11466 | L85: 75.34
D86: гарнир | E86: Каша рассыпчатая гречневая | F86: 150 | G86: 3 | H86: 4 | I86: 25 | J86: 174.83 | K86: 11414 | L86: 13.03
D87: гор.напиток | E87: Напиток из плодов шиповника | F87: 200 | G87: 0.24 | H87: 0.05 | I87: 14.7 | J87: 55.61 | K87: 11343 | L87: 14.31
D88: хлеб бел. | E88: Хлеб вит. пшеничный | F88: 25 | G88: 1.65 | H88: 0.15 | I88: 11.7 | J88: 56 | K88: 11336 | L88: 3.18
D89: хлеб черн. | E89: Хлеб ржаной | F89: 25 | G89: 1.32 | H89: 0.24 | I89: 8.34 | J89: 38.7 | K89: 11336 | L89: 2.88
D90: свежие овощи | E90: Закуска из квашеной капусты с маслом | F90: 60 | G90: 0.49 | H90: 6.08 | I90: 2.31 | J90: 64.2 | K90: 11367 | L90: 25.6
D91: итого | F91: 750 | G91: =SUM(G84:G90) -> 31.23 | H91: =SUM(H84:H89) -> 42.32 | I91: =SUM(I84:I89) -> 102.84 | J91: =SUM(J84:J89) -> 827.34 | L91: =SUM(L84:L90) -> 162.95
A92: =A78 -> 2 | B92: =B78 -> 1 | C92: Итого за день: | F92: 1255 | G92: =SUM(G91,G83) -> 52.39 | H92: =SUM(H83,H91) -> 65.1 | I92: =SUM(I83,I91) -> 167.06 | J92: =SUM(J83,J91) -> 1350.04
A93: 2 | B93: 2 | C93: Завтрак | D93: блюдо из творога | E93: Мексиканский флан со сгущенным молоком 130/20 | F93: 150 | G93: 19.64 | H93: 12.95 | I93: 32.32 | J93: 222.84 | K93: 11863 | L93: 76.08
D94: гор.напиток | E94: Чай лимонный с сахаром | F94: 200 | G94: 0.2 | H94: 0.1 | I94: 13.9 | J94: 55 | K94: 11343 | L94: 7.35
D95: батон | E95: Батон витаминизированый | F95: 25 | G95: 7.5 | H95: 6.15 | I95: 32.55 | J95: 72 | K95: 11336 | L95: 4.21
D96: фрукты | E96: Фрукт | F96: 100 | G96: 0.52 | H96: 0.52 | I96: 15.08 | J96: 63.28 | K96: 11337 | L96: 21
D97: итого | F97: =SUM(F93:F96) -> 475 | G97: =SUM(G93:G96) -> 27.86 | H97: =SUM(H93:H96) -> 19.72 | I97: =SUM(I93:I96) -> 93.85 | J97: =SUM(J93:J96) -> 413.12 | L97: =SUM(L93:L96) -> 108.64
A98: =A93 -> 2 | B98: =B93 -> 2 | C98: Обед | D98: 1 блюдо | E98: Борщ со сметаной | F98: 200 | G98: 1.84 | H98: 5.76 | I98: 0.24 | J98: 187.85 | K98: 11385 | L98: 29.46
D99: гарнир | E99: Рис припущенный с куркумой | F99: 150 | G99: 2.98 | H99: 4 | I99: 24.53 | J99: 141.83 | K99: 11466 | L99: 12.19
D100: 2 блюдо | E100: Фрикасе из куриного филе | F100: 90 | G100: 16.5 | H100: 4.84 | I100: 3.24 | J100: 196.95 | K100: 11414 | L100: 93.56
D101: гор.напиток | E101: Чай с сахаром | F101: 200 | G101: 1.65 | H101: 0.15 | I101: 11.7 | J101: 56 | K101: 11343 | L101: 4.11
D102: хлеб бел. | E102: Хлеб вит. пшеничный | F102: 25 | G102: 1.32 | H102: 0.24 | I102: 8.34 | J102: 38.676 | K102: 11336 | L102: 3.18
D103: хлеб черн. | E103: Хлеб ржаной | F103: 25 | G103: 1.05 | H103: 0.19 | I103: 6.67 | J103: 30.9 | K103: 11336 | L103: 2.88
D104: свежие овощи | E104: Закуска из огурцов свежих с подсолнечным маслом | F104: 60 | G104: 0.35 | H104: 6.06 | I104: 1.96 | J104: 62.04 | K104: 11369 | L104: 17.57
D105: итого | F105: =SUM(F98:F104) -> 750 | G105: =SUM(G98:G104) -> 25.69 | H105: =SUM(H98:H103) -> 15.18 | I105: =SUM(I98:I103) -> 54.72 | J105: =SUM(J98:J103) -> 652.206 | L105: =SUM(L98:L104) -> 162.95
A106: =A93 -> 2 | B106: =B93 -> 2 | C106: Итого за день: | F106: 1250 | G106: =SUM(G105,G97) -> 53.55 | H106: =SUM(H105,H97) -> 34.9 | I106: =SUM(I97,I105) -> 148.57 | J106: =SUM(J97,J105) -> 1065.326
A107: 2 | B107: 3 | C107: Завтрак | D107: бутерброды | E107: Бутерброд с сыром 15/25 | F107: 40 | G107: 1.65 | H107: 14.27 | I107: 9.9 | J107: 210.5968 | K107: 11863 | L107: 31.29
D108: гор.блюдо | E108: Каша Дружба (пшено, рис) с маслом | F108: 210 | G108: 3.94 | H108: 5.11 | I108: 27.5 | J108: 170.2 | K108: 11343 | L108: 54.05
D109: гор.напиток | E109: Чай с молоком | F109: 200 | G109: 1.65 | H109: 0.15 | I109: 11.7 | J109: 56 | K109: 11336 | L109: 16.21
D110: батон | E110: Батон витаминизированый | F110: 25 | G110: 7.5 | H110: 6.15 | I110: 32.55 | J110: 72 | K110: 11336 | L110: 4.21
D111: хлеб черн. | E111: Хлеб ржаной | F111: 25 | G111: 1.32 | H111: 0.24 | I111: 8.34 | J111: 38.7 | K111: 11336 | L111: 2.88
D112: итого | F112: =SUM(F107:F111) -> 500 | G112: =SUM(G107:G111) -> 16.06 | H112: =SUM(H107:H111) -> 25.92 | I112: =SUM(I107:I111) -> 89.99 | J112: =SUM(J107:J111) -> 547.4968 | L112: =SUM(L107:L111) -> 108.64
A113: =A107 -> 2 | B113: =B107 -> 3 | C113: Обед | D113: 1 блюдо | E113: Суп куриный с картофелем и макаронными изделиями | F113: 200 | G113: 3.96 | H113: 5.28 | I113: 17.72 | J113: 231.58 | K113: 11386 | L113: 22.39
D114: 2 блюдо | E114: Филе минтая припущенное в соусе с овощами | F114: 90 | G114: 1.65 | H114: 14.27 | I114: 9.9 | J114: 210.5968 | K114: 11863 | L114: 69.67
D115: гарнир | E115: Пюре картофельное | F115: 150 | G115: 3.94 | H115: 5.11 | I115: 27.5 | J115: 170.2 | K115: 11343 | L115: 31.47
D116: напиток | E116: Чай Каркаде с сахаром | F116: 200 | G116: 0.27 | H116: 0.09 | I116: 22.75 | J116: 92.22 | K116: 11387 | L116: 4.98
D117: хлеб бел. | E117: Хлеб вит. пшеничный | F117: 50 | G117: 1.65 | H117: 0.15 | I117: 11.7 | J117: 56 | K117: 11336 | L117: 6.36
D118: хлеб черн. | E118: Хлеб ржаной | F118: 25 | G118: 1.32 | H118: 0.24 | I118: 8.34 | J118: 38.7 | K118: 11336 | L118: 2.88
D119: фрукты | E119: Фрукт | F119: 120 | G119: 0.48 | H119: 0.48 | I119: 11.76 | J119: 56.4 | K119: 11337 | L119: 25.2
D120: итого | F120: 715 | G120: =SUM(G113:G119) -> 13.27 | H120: =SUM(H113:H118) -> 25.14 | I120: =SUM(I113:I118) -> 97.91 | J120: =SUM(J113:J118) -> 799.2968 | L120: =SUM(L113:L119) -> 162.95
A121: =A107 -> 2 | B121: =B107 -> 3 | C121: Итого за день: | F121: 1215 | G121: =SUM(G120,G112) -> 29.33 | H121: =SUM(H112,H120) -> 51.06 | I121: =SUM(I112,I120) -> 187.9 | J121: =SUM(J112,J120) -> 1346.7936
A122: 2 | B122: 4 | C122: Завтрак | D122: гарнир | E122: Картофельное пюре | F122: 160 | G122: 1.65 | H122: 14.27 | I122: 9.9 | J122: 174.5968 | K122: 11362 | L122: 30.74
D123: 2 блюдо | E123: Филе минтая запеченое в омлете | F123: 90 | G123: 8.2 | H123: 8.4 | I123: 36.2 | J123: 212.1 | K123: 11356 | L123: 67.25
D124: гор.напиток | E124: Чай с сахаром | F124: 200 | G124: 7.5 | H124: 6.15 | I124: 32.55 | J124: 132.5 | K124: 11608 | L124: 3.56
D125: батон | E125: Батон витаминизированый | F125: 25 | G125: 5.1 | H125: 1.9 | I125: 7.4 | J125: 70 | K125: 11501 | L125: 4.21
D126: хлеб черн. | E126: Хлеб ржаной | F126: 25 | G126: 1.32 | H126: 0.24 | I126: 8.34 | J126: 38.7 | K126: 11336 | L126: 2.88
D127: итого | F127: 500 | G127: =SUM(G122:G126) -> 23.77 | H127: =SUM(H122:H126) -> 30.96 | I127: =SUM(I122:I126) -> 94.39 | J127: =SUM(J122:J126) -> 627.8968 | L127: =SUM(L122:L126) -> 108.64
A128: =A122 -> 2 | B128: =B122 -> 4 | C128: Обед | D128: 1 блюдо | E128: Солянка Домашняя со сметаной | F128: 200 | G128: 7.48 | H128: 8.45 | I128: 11.37 | J128: 148.65 | K128: 11387 | L128: 35.62
D129: гарнир | E129: Булгур с овощами и зеленой фасолью | F129: 150 | G129: 7.31 | H129: 10.81 | I129: 45.55 | J129: 182.1 | K129: 11539 | L129: 26.02
D130: 2 блюдо | E130: Курица в сырном соусе | F130: 100 | G130: 8.2 | H130: 8.4 | I130: 36.2 | J130: 244.1 | K130: 11522 | L130: 78.21
D131: напиток | E131: Напиток фруктово-ягодный | F131: 200 | G131: 0.27 | H131: 0.09 | I131: 22.75 | J131: 92.22 | K131: 11342 | L131: 13.86
D132: хлеб бел. | E132: Хлеб вит. пшеничный | F132: 50 | G132: 1.65 | H132: 0.15 | I132: 11.7 | J132: 56 | K132: 11336 | L132: 6.36
D133: хлеб черн. | E133: Хлеб ржаной | F133: 25 | G133: 1.32 | H133: 0.24 | I133: 8.34 | J133: 38.7 | K133: 11336 | L133: 2.88
D134: итого | F134: 700 | G134: =SUM(G128:G133) -> 26.23 | H134: =SUM(H128:H133) -> 28.14 | I134: =SUM(I128:I133) -> 135.91 | J134: =SUM(J128:J133) -> 761.77 | L134: =SUM(L128:L133) -> 162.95
A135: =A122 -> 2 | B135: =B122 -> 4 | C135: Итого за день: | F135: 1200 | G135: =SUM(G134,G127) -> 50 | H135: =SUM(H127,H134) -> 59.1 | I135: =SUM(I127,I134) -> 230.3 | J135: =SUM(J127,J134) -> 1389.6668
A136: 2 | B136: 5 | C136: Завтрак | D136: бутерброды | E136: Бутерброд с маслом сливочным 10/25 | F136: 35 | G136: 1.65 | H136: 14.27 | I136: 9.9 | J136: 185.33 | K136: 11359 | L136: 27.74
D137: блюдо из яиц | E137: Омлет с сыром | F137: 190 | G137: 5.65 | H137: 4.28 | I137: 0.32 | J137: 64.35 | K137: 11357 | L137: 64.55
D138: гор.напиток | E138: Чай Каркаде с сахаром | F138: 200 | G138: 0.2 | H138: 0.1 | I138: 13.9 | J138: 86.52 | K138: 11344 | L138: 9.26
D139: батон | E139: Батон витаминизированый | F139: 25 | G139: 7.5 | H139: 6.15 | I139: 32.55 | J139: 72 | K139: 11336 | L139: 4.21
D140: хлеб черн. | E140: Хлеб ржаной | F140: 50 | G140: 1.32 | H140: 0.24 | I140: 8.34 | J140: 38.7 | K140: 11336 | L140: 2.88
D141: итого | F141: 500 | G141: =SUM(G136:G140) -> 16.32 | H141: =SUM(H136:H140) -> 25.04 | I141: =SUM(I136:I140) -> 65.01 | J141: =SUM(J136:J140) -> 446.9 | L141: =SUM(L136:L140) -> 108.64
A142: =A136 -> 2 | B142: =B136 -> 5 | C142: Обед | D142: 1 блюдо | E142: Суп-пюре с тыквой и гренками | F142: 200 | G142: 3.75 | H142: 11.39 | I142: 18.49 | J142: 150.38 | K142: 11513 | L142: 36.6
D143: 2 блюдо | E143: Жаркое по-домашнему из свинины | F143: 240 | G143: 22 | H143: 26.31 | I143: 70.38 | J143: 227.07 | K143: 11392 | L143: 107.25
D144: напиток | E144: Напиток из смеси сухофруктов | F144: 200 | G144: 0.26 | H144: 0.12 | I144: 38.7 | J144: 123.2 | K144: 11715 | L144: 9.86
D145: хлеб бел. | E145: Хлеб вит. пшеничный | F145: 50 | G145: 3.3 | H145: 0.3 | I145: 23.4 | J145: 112 | K145: 11335 | L145: 6.36
D146: хлеб черн. | E146: Хлеб ржаной | F146: 25 | G146: 1.32 | H146: 0.24 | I146: 8.34 | J146: 38.7 | K146: 11336 | L146: 2.88
D147: итого | F147: 715 | G147: =SUM(G142:G146) -> 30.63 | H147: =SUM(H142:H146) -> 38.36 | I147: =SUM(I142:I146) -> 159.31 | J147: =SUM(J142:J146) -> 651.35 | L147: =SUM(L142:L146) -> 162.95
A148: =A136 -> 2 | B148: =B136 -> 5 | C148: Итого за день: | F148: 1215 | G148: =SUM(G147,G141) -> 46.95 | H148: =SUM(H141,H147) -> 63.4 | I148: =SUM(I141,I147) -> 224.32 | J148: =SUM(J141,J147) -> 1098.25
C149: Среднее значение за период: | F149: 1234 | G149: 49.17 | H149: 59.23 | I149: 208.45 | J149: =SUM(J20,J35,J50,J64,J77,J92,J106,J121,J135,J148)/10 -> 1251.18512
